Workbook

Sheet Sheet1
A1: USDA - RUS | C1: Title of Information Document | I1: OMB No.
J2: 0572-0112
A3: SUMMARY OF INFORMATION COLLECTION | C3: 7 CFR 1775 Technical Assistance Programs | I3: Date Prepared
J4: April 7th, 2020
A5: INSTRUCTIONS: | E5: > | F5: (f) TOTAL | H5: (h) TOTAL
A6: Use this form when a single information collection document involves multiple reporting and | E6: > | F6: - | G6: = (e) Average | H6: - | I6: = (g) Average | J6: - | K6: = (j) Average
A7: recordkeeping requirements. | E7: > | F7: (d) TOTAL | H7: (f) TOTAL | J7: (i) TOTAL
A8: IDENTIFICATION OF REPORTING AND RECORDKEEPPING REQUIREMENTS | G8: ANNUAL BURDEN
C9: FORM | F9: REPORTS | J9: RECORDS
C10: NO(s) | D10: NO. OF | E10: NO. OF | F10: TOTAL | G10: HOURS | H10: TOTAL | I10: NO. OF | J10: ANNUAL | K10: TOTAL
A11: SECTION OF | C11: (If "none" | D11: RESPON- | E11: RESPONSES | F11: ANNUAL | G11: PER | H11: HOURS | I11: RECORD- | J11: HOURS PER | K11: RECORD-
A12: REGULATIONS | B12: DESCRIPTION | C12: so state) | D12: DENTS | E12: PER | F12: RESPONSES | G12: RESPONSE | H12: (Col. f & g) | I12: KEEPERS | J12: RECORD- | K12: KEEPING
E13: RESPON- | F13: (Col. d & e) | J13: KEEPER | K13: HOURS
E14: DENT | K14: (Col. i & j)
A15: (a) | B15: (b) | C15: (c) | D15: (d) | E15: (e) | F15: (f) | G15: (g) | H15: (h) | I15: (i) | J15: (j) | K15: (k)
B16: Items Cleared With This Package*
B18: Initial Application/Application Process
A20: 1775.10(c)(6) | B20: Documentation of assistance provided to Rural Development employees | C20: Written | D20: 65 | E20: 1 | F20: =SUM(D20*E20) -> 65 | G20: 0.25 | H20: =SUM(F20*G20) -> 16.25
A22: 1775.10(c)(9) | B22: Indirect Cost Agreement | C22: Written | D22: 65 | E22: 1 | F22: =SUM(D22*E22) -> 65 | G22: 1 | H22: =SUM(F22*G22) -> 65
A24: 1775.10(c)(10) | B24: Statement of Compliance , Title VI of Civil Rights Act of 1964 | C24: Written | D24: 65 | E24: 1 | F24: =SUM(D24*E24) -> 65 | G24: 0.5 | H24: =SUM(F24*G24) -> 32.5
A26: 1775.10 | B26: Statement concerning assistance under the National Forest Service-Dependent Rural Communities Economic Diversification Act | C26: Written | D26: 65 | E26: 1 | F26: =SUM(D26*E26) -> 65 | G26: 1 | H26: =SUM(F26*G26) -> 65
A28: 1775.10(d)(1) | B28: Legal Authority and Responsibility | C28: Written | D28: 65 | E28: 1 | F28: =SUM(D28*E28) -> 65 | G28: 0.25 | H28: =SUM(F28*G28) -> 16.25
A30: 1775.10(d)(2) | B30: Evidence of Tax Exempt Status | C30: Written | D30: 65 | E30: 1 | F30: =SUM(D30*E30) -> 65 | G30: 0.25 | H30: =SUM(F30*G30) -> 16.25
A32: 1775.10(d)(3) | B32: Narrative | C32: Written
B33: Initial Submission | D33: 65 | E33: 1 | F33: =SUM(D33*E33) -> 65 | G33: 2 | H33: =SUM(F33*G33) -> 130
B34: Revised Submission | D34: 53 | E34: 1 | F34: =SUM(D34*E34) -> 53 | G34: 2 | H34: 106
A36: 1775.10(d)(8) | B36: Scope of Work | C36: Written
B37: Initial Submission | D37: 65 | E37: 1 | F37: =SUM(D37*E37) -> 65 | G37: 12 | H37: =SUM(F37*G37) -> 780
B38: Revised Submission | D38: 53 | E38: 1 | F38: =SUM(D38*E38) -> 53 | G38: 12 | H38: 636
A40: 1775.10(d)(6) | B40: Budget justification | C40: Written
B41: Initial Submission | D41: 65 | E41: 1 | F41: =SUM(D41*E41) -> 65 | G41: 10 | H41: =SUM(F41*G41) -> 650
B42: Revised Submission | D42: 53 | E42: 1 | F42: =SUM(D42*E42) -> 53 | G42: 10 | H42: 530
A44: 1775.10(d)(4) | B44: Latest Financial Information | C44: Written | D44: 65 | E44: 1 | F44: =SUM(D44*E44) -> 65 | G44: 1 | H44: =SUM(F44*G44) -> 65
A46: 1775.10(d)(7) | B46: Evidence of Financial Management System | C46: Written | D46: 65 | E46: 1 | F46: =SUM(D46*E46) -> 65 | G46: 0.25 | H46: =SUM(F46*G46) -> 16.25
B48: Post-Application
A49: 1775.13 | B49: Grant Agreement | C49: RUS Guide 1775-1 | D49: 53 | E49: 1 | F49: =SUM(D49*E49) -> 53 | G49: 2 | H49: =SUM(F49*G49) -> 106
A51: 1775.2 | B51: Project Performance Report | C51: Written | D51: 53 | E51: 4 | F51: =SUM(D51*E51) -> 212 | G51: 12 | H51: =SUM(F51*G51) -> 2544
A53: 1775.21 | B53: Audit | C53: Written | D53: 9 | E53: 1 | F53: =SUM(D53*E53) -> 9 | G53: 3 | H53: =SUM(F53*G53) -> 27
A55: 1775.21 | B55: Financial Statements | C55: Written | D55: 42 | E55: 1 | F55: =SUM(D55*E55) -> 42 | G55: 1 | H55: =SUM(F55*G55) -> 42
A57: 1775.10(c)(3) | B57: Certification Regarding Debarment, Suspension, and Other Responsibility Matters - Primary Covered Transactions | C57: AD-1047 (0505-0027) | D57: 65 | E57: 1 | F57: =SUM(D57*E57) -> 65 | G57: 0.25 | H57: =SUM(F57*G57) -> 16.25
A59: 1775.10(c)(5) | B59: Certification Regarding Debarment | C59: AD-1048 (0505-0027) | D59: 65 | E59: 1 | F59: =SUM(D59*E59) -> 65 | G59: 0.25 | H59: =SUM(F59*G59) -> 16.25
A61: 1775.10(c)(4) | B61: Certification Regarding Drug-Free Workplace Requirements (Grants) Alternative I - for Grantees Other Than Individuals | C61: AD-1049 (0505-0027) | D61: 65 | E61: 1 | F61: =SUM(D61*E61) -> 65 | G61: 0.25 | H61: =SUM(F61*G61) -> 16.25
B63: Total Hours This Package | D63: 65 | F63: =SUM(F57:F61,F44:F55,F41,F37,F20:F33,F42+F38+F34) -> 1385 | H63: =SUM(H57:H61,H44:H55,H41,H37,H20:H33,H42+H38+H34) -> 5892.25 | J63: PAGE 1
F64: =F20+F22+F24+F26+F28+F30+F33+F34+F37+F38+F41+F42+F44+F46+F49+F51+F53+F55+F57+F59+F61 -> 1385 | H64: =H20+H22+H24+H26+H28+H30+H33+H34+H37+H38+H41+H42+H44+H46+H49+H51+H53+H55+H57+H59+H61 -> 5892.25
B65: Items Cleared Under Other Packages
B67: Representations Regarding Felony Conviction and Tax Delinquent Status for Corporate Applicants | C67: AD-3030 (0505-0025) | D67: 65 | E67: 1 | F67: =SUM(D67*E67) -> 65 | G67: 0.25 | H67: =SUM(F67*G67) -> 16.25
B69: Assurances Regarding Felony Conviction and Tax Deilnquent Status for corporate applicants | C69: AD-3031 (0505-0025) | D69: 43 | E69: 1 | F69: 43 | G69: 0.05 | H69: 2.15
A71: 1775.10(c)(1) | B71: Application for Federal Assistance (Non-construction Programs) | C71: SF-424
B72: Initial Submission | C72: (4040-0004) | D72: 65 | E72: 1 | F72: 142 | G72: 0.75 | H72: =SUM(F72*G72) -> 106.5
B73: Revised Submission | D73: 53 | E73: 1 | F73: 26 | G73: 0.75 | H73: 19.5
A75: 1775.10(c)(2) | B75: Budget Information--Non-Construction Programs | C75: SF-424A
B76: Initial Submission | C76: (4040-0006) | D76: 65 | E76: 1 | F76: 142 | G76: 3 | H76: =SUM(F76*G76) -> 426
B77: Revised Submission | D77: 53 | E77: 1 | F77: 26 | G77: 3 | H77: 78
A79: 1775.10(c)(2) | B79: Assurances--Non-construction Programs | C79: SF-424B
B80: Initial Submission | C80: (4040-0007) | D80: 65 | E80: 1 | F80: 142 | G80: 0.25 | H80: =SUM(F80*G80) -> 35.5
B81: Revised Submission | D81: 53 | E81: 1 | F81: 26 | G81: 0.25 | H81: 6.5
A83: 1775.10(c)(8) | B83: Equal Opportunity Agreement | C83: RD 400-1 | D83: 53 | E83: 1 | F83: =SUM(D83*E83) -> 53 | G83: 0.17 | H83: =SUM(F83*G83) -> 9.01
C84: (0575-0018)
A86: 1775.10(c)(7) | B86: Assurance Agreement | C86: RD 400-4 | D86: 53 | E86: 1 | F86: =SUM(D86*E86) -> 53 | G86: 0.25 | H86: =SUM(F86*G86) -> 13.25
C87: (0575-0018)
A89: 1775.18(a) | B89: Request for Advance or Reimbursement (Corporation) | C89: SF-270 | D89: 53 | E89: 12 | F89: =SUM(D89*E89) -> 636 | G89: 1 | H89: =SUM(F89*G89) -> 636
C90: (4040-0012)
A92: 1775.10(c)(11) | B92: Disclosure of Lobbying Activities | C92: SF LLL | D92: 43 | E92: 1 | F92: =SUM(D92*E92) -> 43 | G92: 0.25 | H92: =SUM(F92*G92) -> 10.75
C93: (4040-0013)
B95: Federal Financial Report | C95: SF-425 | D95: 53 | E95: 4 | F95: =SUM(D95*E95) -> 212 | G95: 1.5 | H95: =SUM(F95*G95) -> 318
C96: (4040-0014)
A98: RUS Form 36 (07-91) | J98: Page __2__ of __2__
D99: Average Response Hours | G99: =AVERAGE(G83:G96,G80,G76,G72,G67:G69,G57:G61,G41:G55,G37,G37,G37,G33,G20:G30) -> 2.861935484
A100: *Note: Applications: Private sector responses = 61. American Indian responses = 4. Total = 65
A101: ** Note: Obligations/Approvals: Private sector responses = 49; Tribal responses = 4; Total = 53

Sheet Sheet2

Sheet Sheet3
